[Event "Kupreichik Memorial Open 2018"]
[Site "Minsk"]
[Date "2018.06.21"]
[Round "4"]
[White "Tsigelnitskiy, Ilusha"]
[Black "Zagorskii, Artem"]
[Result "1-0"]
[ECO "B42"]
[WhiteElo "2253"]
[BlackElo "1705"]
[Annotator "NA"]
[PlyCount "111"]
[EventDate "2018.06.21"]
[EventCountry "BLR"]
[SourceTitle "playchess.com"]
[Source "ChessBase"]
[SourceQuality "1"]
[TimeControl "900+10"]

1. e4 {[%emt 0:00:00]} c5 {[%emt 0:00:12]} 2. Nf3 {[%emt 0:00:00]} e6 {[%emt 0:00:03]} 3. d4 {[%emt 0:00:00]} cxd4 {[%emt 0:00:01]} 4. Nxd4 {[%emt 0:00:00]} a6 {[%emt 0:00:04]} 5. Bd3 {[%emt 0:00:01]} Ne7 {[%emt 0:00:05]} 6. b3 {[%emt 0:00:39]} Nbc6 {[%emt 0:00:05]} 7. Nxc6 {[%emt 0:00:08]} Nxc6 {[%emt 0:00:05]} 8. Bb2 {[%emt 0:00:04]} Bb4+ {[%emt 0:01:18]} 9. Nd2 {[%emt 0:00:08]} O-O {[%emt 0:00:05]} 10. O-O {[%emt 0:00:07]} Be7 {[%emt 0:00:06]} 11. Qe2 {[%emt 0:01:42]} Nb4 {[%emt 0:01:43]} 12. Rad1 {[%emt 0:00:05]} Nxd3 {[%emt 0:00:23]} 13. Qxd3 {[%emt 0:00:03]} b5 {[%emt 0:01:54]} 14. Qg3 {[%emt 0:00:33]} f6 {[%emt 0:01:11]} 15. Nf3 {[%emt 0:00:57]} Bb7 {[%emt 0:00:49]} 16. Rfe1 {[%emt 0:00:07]} Rc8 {[%emt 0:00:10]} 17. Nd4 {[%emt 0:01:40]} Qc7 {[%emt 0:00:20]} 18. Qg4 {[%emt 0:00:29]} Bc5 {[%emt 0:03:05]} 19. h4 {[%emt 0:00:47]} Rf7 {[%emt 0:00:58]} 20. c3 {[%emt 0:01:53]} Bf8 {[%emt 0:02:46]} 21. h5 {[%emt 0:00:10]} Kh8 {[%emt 0:01:10]} 22. Re3 {[%emt 0:00:42]} Bc5 {[%emt 0:00:27]} 23. Rh3 {[%emt 0:01:12]} Bxd4 {[%emt 0:00:06]} 24. Rxd4 {[%emt 0:00:14]} h6 {[%emt 0:00:25]} 25. Rg3 {[%emt 0:00:52]} Rg8 {[%emt 0:01:09]} 26. Qg6 {[%emt 0:00:14]} d5 {[%emt 0:00:25]} 27. exd5 {[%emt 0:00:18]} Bxd5 {[%emt 0:00:03]} 28. c4 {[%emt 0:00:40]} bxc4 {[%emt 0:00:01]} 29. bxc4 {[%emt 0:00:02]} Bb7 {[%emt 0:00:01]} 30. Rgg4 {[%emt 0:03:33]} e5 {[%emt 0:00:23]} 31. Rd3 {[%emt 0:00:07]} Bc8 {[%emt 0:00:30]} 32. Re4 {[%emt 0:00:41]} Be6 {[%emt 0:00:01]} 33. Bc1 {[%emt 0:00:09]} Qe7 {[%emt 0:00:21]} 34. Rg3 {[%emt 0:00:39]} Rff8 {[%emt 0:00:08]} 35. f4 {[%emt 0:00:12]} Qa7+ {[%emt 0:00:02]} 36. Kh2 {[%emt 0:00:03]} Bf7 {[%emt 0:00:19]} 37. Qf5 {[%emt 0:00:07]} exf4 {[%emt 0:00:04]} 38. Bxf4 {[%emt 0:00:08]} Be8 {[%emt 0:00:14]} 39. Bd6 {[%emt 0:00:15]} Rf7 {[%emt 0:00:10]} 40. Rge3 {[%emt 0:00:03]} Bd7 {[%emt 0:00:05]} 41. Qf4 {[%emt 0:00:04]} Qb6 {[%emt 0:00:19]} 42. c5 {[%emt 0:00:04]} Qc6 {[%emt 0:00:01]} 43. Rg3 {[%emt 0:00:13]} Bc8 {[%emt 0:00:14]} 44. Qe3 {[%emt 0:00:21]} Bb7 {[%emt 0:00:01]} 45. Re7 {[%emt 0:00:05]} Qd5 {[%emt 0:00:12]} 46. Qe2 {[%emt 0:00:34]} Rxe7 {[%emt 0:00:09]} 47. Bxe7 {[%emt 0:00:03]} Re8 {[%emt 0:00:08]} 48. Re3 {[%emt 0:00:09]} Qg5 {[%emt 0:00:22]} 49. Kg1 {[%emt 0:00:23]} Qf4 {[%emt 0:00:09]} 50. Qf2 {[%emt 0:00:05]} Qd4 {[%emt 0:00:10]} 51. Re1 {[%emt 0:00:20]} Qd5 {[%emt 0:00:08]} 52. Qe2 {[%emt 0:00:35]} Kg8 {[%emt 0:00:09]} 53. Qg4 {[%emt 0:00:21]} Ba8 {[%emt 0:00:18]} 54. Qg6 {[%emt 0:00:13]} Bc6 {[%emt 0:00:06]} 55. Kh2 {[%emt 0:00:25]} Ba8 {[%emt 0:00:05]} 56. Bxf6 {[%emt 0:00:18]} 1-0

[Event "Kupreichik Memorial Open 2018"]
[Site "Minsk"]
[Date "2018.06.21"]
[Round "4"]
[White "Sihite, Chelsie Monica Igne"]
[Black "Artsiomau, Stanislau"]
[Result "1-0"]
[ECO "C50"]
[WhiteElo "2236"]
[BlackElo "1954"]
[Annotator "NA"]
[PlyCount "109"]
[EventDate "2018.06.21"]
[EventCountry "BLR"]
[SourceTitle "playchess.com"]
[Source "ChessBase"]
[SourceQuality "1"]
[TimeControl "900+10"]

1. e4 {[%emt 0:00:00]} e5 {[%emt 0:00:01]} 2. Nf3 {[%emt 0:00:00]} Nc6 {[%emt 0:00:01]} 3. Bc4 {[%emt 0:00:00]} Be7 {[%emt 0:00:01]} 4. O-O {[%emt 0:00:05]} Nf6 {[%emt 0:00:03]} 5. d3 {[%emt 0:00:20]} d6 {[%emt 0:00:11]} 6. c3 {[%emt 0:00:08]} O-O {[%emt 0:00:09]} 7. Bb3 {[%emt 0:00:27]} Bg4 {[%emt 0:01:09]} 8. h3 {[%emt 0:00:21]} Be6 {[%emt 0:00:25]} 9. Bc2 {[%emt 0:00:15]} h6 {[%emt 0:00:47]} 10. d4 {[%emt 0:00:57]} exd4 {[%emt 0:00:31]} 11. Nxd4 {[%emt 0:00:06]} Bd7 {[%emt 0:01:02]} 12. Nd2 {[%emt 0:00:29]} Re8 {[%emt 0:01:22]} 13. Re1 {[%emt 0:00:26]} Bf8 {[%emt 0:00:01]} 14. Nf1 {[%emt 0:00:04]} g6 {[%emt 0:01:52]} 15. Ng3 {[%emt 0:00:10]} Bg7 {[%emt 0:00:02]} 16. Be3 {[%emt 0:00:07]} Kh7 {[%emt 0:01:28]} 17. f4 {[%emt 0:00:23]} a6 {[%emt 0:00:41]} 18. Nf3 {[%emt 0:00:21]} Ng8 {[%emt 0:00:32]} 19. Bd3 {[%emt 0:00:39]} b5 {[%emt 0:00:36]} 20. Qc2 {[%emt 0:00:03]} Nge7 {[%emt 0:00:18]} 21. Rad1 {[%emt 0:00:09]} Qc8 {[%emt 0:00:02]} 22. Kh2 {[%emt 0:00:05]} Rb8 {[%emt 0:00:18]} 23. Bc1 {[%emt 0:00:43]} a5 {[%emt 0:00:49]} 24. e5 {[%emt 0:00:19]} dxe5 {[%emt 0:00:27]} 25. fxe5 {[%emt 0:00:02]} Nf5 {[%emt 0:00:39]} 26. Nxf5 {[%emt 0:00:09]} Bxf5 {[%emt 0:00:02]} 27. Bxf5 {[%emt 0:00:08]} Qxf5 {[%emt 0:00:15]} 28. Qxf5 {[%emt 0:00:03]} gxf5 {[%emt 0:00:01]} 29. Bf4 {[%emt 0:00:13]} Rbd8 {[%emt 0:00:34]} 30. Rxd8 {[%emt 0:00:10]} Nxd8 {[%emt 0:01:15]} 31. Rd1 {[%emt 0:01:16]} Ne6 {[%emt 0:00:41]} 32. g3 {[%emt 0:00:07]} Bf8 {[%emt 0:00:50]} 33. Nh4 {[%emt 0:00:17]} Ng7 {[%emt 0:01:35]} 34. Rd7 {[%emt 0:00:22]} Be7 {[%emt 0:00:22]} 35. Nf3 {[%emt 0:01:04]} Ne6 {[%emt 0:00:00]} 36. Nd4 {[%emt 0:00:10]} Nxd4 37. cxd4 {[%emt 0:00:02]} c6 {[%emt 0:01:24]} 38. Rc7 {[%emt 0:00:03]} Bf8 {[%emt 0:00:43]} 39. Rxf7+ {[%emt 0:00:22]} Kg8 {[%emt 0:00:12]} 40. Rxf5 Rd8 41. Be3 {[%emt 0:00:34]} a4 {[%emt 0:00:06]} 42. Kg2 {[%emt 0:00:35]} b4 {[%emt 0:00:22]} 43. Kf3 {[%emt 0:00:02]} Rb8 {[%emt 0:00:13]} 44. Ke4 {[%emt 0:00:20]} b3 {[%emt 0:00:01]} 45. axb3 {[%emt 0:00:01]} Rxb3 {[%emt 0:00:04]} 46. Rf2 {[%emt 0:00:02]} Be7 {[%emt 0:00:25]} 47. Rc2 {[%emt 0:00:08]} h5 {[%emt 0:00:05]} 48. h4 {[%emt 0:00:10]} Kf7 {[%emt 0:00:07]} 49. Bf4 {[%emt 0:00:37]} Ke8 {[%emt 0:00:24]} 50. e6 {[%emt 0:00:05]} Rb6 {[%emt 0:00:08]} 51. Kf5 {[%emt 0:00:17]} Kf8 {[%emt 0:00:10]} 52. Be5 {[%emt 0:00:11]} Ra6 {[%emt 0:00:08]} 53. d5 {[%emt 0:00:05]} c5 {[%emt 0:00:06]} 54. Rd2 {[%emt 0:00:11]} c4 {[%emt 0:00:17]} 55. d6 {[%emt 0:00:05]} 1-0

[Event "Kupreichik Memorial Open 2018"]
[Site "Minsk"]
[Date "2018.06.21"]
[Round "4"]
[White "Sarbay, Aleksandr"]
[Black "Talma, Sergei"]
[Result "1-0"]
[ECO "B28"]
[WhiteElo "2183"]
[BlackElo "1858"]
[Annotator "NA"]
[PlyCount "46"]
[EventDate "2018.06.21"]
[EventCountry "BLR"]
[SourceTitle "playchess.com"]
[Source "ChessBase"]
[SourceQuality "1"]
[TimeControl "900+10"]

1. e4 {[%emt 0:00:00]} c5 {[%emt 0:00:03]} 2. Nf3 {[%emt 0:00:00]} a6 {[%emt 0:00:02]} 3. g3 {[%emt 0:00:02]} Nc6 {[%emt 0:00:04]} 4. Bg2 {[%emt 0:00:06]} e5 {[%emt 0:00:20]} 5. O-O {[%emt 0:00:40]} Nf6 {[%emt 0:00:13]} 6. Re1 {[%emt 0:00:43]} d6 {[%emt 0:00:10]} 7. h3 {[%emt 0:00:17]} h6 {[%emt 0:03:46]} 8. c3 {[%emt 0:00:08]} g5 {[%emt 0:00:08]} 9. d4 {[%emt 0:00:40]} g4 {[%emt 0:00:10]} 10. hxg4 {[%emt 0:00:28]} Bxg4 {[%emt 0:00:05]} 11. dxc5 {[%emt 0:00:14]} dxc5 {[%emt 0:00:41]} 12. Qe2 {[%emt 0:00:55]} Qd7 {[%emt 0:04:47]} 13. Nbd2 {[%emt 0:00:52]} Qe6 {[%emt 0:01:14]} 14. Nc4 {[%emt 0:00:49]} Be7 {[%emt 0:01:43]} 15. Ne3 {[%emt 0:00:17]} h5 {[%emt 0:00:33]} 16. Nf5 {[%emt 0:03:21]} O-O-O {[%emt 0:02:07]} 17. Bg5 {[%emt 0:02:53]} Rhg8 {[%emt 0:00:29]} 18. Nxe7+ {[%emt 0:01:29]} Nxe7 {[%emt 0:00:26]} 19. Qe3 {[%emt 0:00:29]} Qd6 {[%emt 0:00:50]} 20. Rad1 {[%emt 0:00:51]} Qxd1 21. Rxd1 Rxd1+ 22. Kh2 Bxf3 23. Qxf3 Ng4+ {Qe3 Nf6 Bxf6} 1-0

[Event "Kupreichik Memorial Open 2018"]
[Site "Minsk"]
[Date "2018.06.21"]
[Round "4"]
[White "Savolainen, Lev P"]
[Black "Laptii, Nazar"]
[Result "1-0"]
[ECO "A40"]
[WhiteElo "2163"]
[BlackElo "1915"]
[Annotator "NA"]
[PlyCount "95"]
[EventDate "2018.06.21"]
[EventCountry "BLR"]
[SourceTitle "playchess.com"]
[Source "ChessBase"]
[SourceQuality "1"]
[TimeControl "900+10"]

1. d4 {[%emt 0:00:00]} g6 {[%emt 0:00:01]} 2. Nf3 {[%emt 0:00:00]} Bg7 {[%emt 0:00:01]} 3. c4 {[%emt 0:00:00]} Nf6 {[%emt 0:00:01]} 4. Nc3 {[%emt 0:00:04]} O-O {[%emt 0:00:03]} 5. Bf4 {[%emt 0:00:43]} d6 {[%emt 0:00:05]} 6. h3 {[%emt 0:00:04]} Nbd7 {[%emt 0:00:06]} 7. e3 {[%emt 0:00:02]} c6 {[%emt 0:00:57]} 8. Be2 {[%emt 0:00:07]} Qe8 {[%emt 0:00:02]} 9. O-O {[%emt 0:00:11]} e5 {[%emt 0:00:01]} 10. Bh2 {[%emt 0:00:03]} e4 {[%emt 0:00:25]} 11. Nd2 {[%emt 0:00:02]} Qe7 {[%emt 0:00:04]} 12. b4 {[%emt 0:00:50]} b6 {[%emt 0:02:54]} 13. a4 {[%emt 0:04:02]} Bb7 {[%emt 0:04:47]} 14. Qb1 {[%emt 0:01:56]} c5 {[%emt 0:00:31]} 15. bxc5 {[%emt 0:00:49]} dxc5 {[%emt 0:00:03]} 16. Nb5 {[%emt 0:00:32]} Ne8 {[%emt 0:00:36]} 17. Nb3 {[%emt 0:01:21]} a6 {[%emt 0:01:02]} 18. Nc3 {[%emt 0:00:50]} f5 {[%emt 0:02:22]} 19. a5 {[%emt 0:01:52]} f4 {[%emt 0:00:30]} 20. Bxf4 {[%emt 0:02:32]} cxd4 21. Nd5 {[%emt 0:00:03]} Bxd5 {[%emt 0:03:24]} 22. cxd5 {[%emt 0:00:03]} g5 {[%emt 0:00:39]} 23. d6 {[%emt 0:00:30]} Nxd6 {[%emt 0:00:14]} 24. Bxd6 Qxd6 {[%emt 0:00:01]} 25. Nxd4 {[%emt 0:00:32]} Bxd4 {[%emt 0:00:11]} 26. exd4 {[%emt 0:00:23]} Qxd4 {[%emt 0:00:16]} 27. Qb3+ {[%emt 0:00:37]} Kh8 {[%emt 0:00:09]} 28. Rad1 {[%emt 0:00:02]} Qg7 {[%emt 0:00:03]} 29. axb6 {[%emt 0:00:05]} Rab8 {[%emt 0:00:07]} 30. Rd6 {[%emt 0:00:06]} Rf6 {[%emt 0:00:15]} 31. Rxf6 {[%emt 0:00:45]} Qxf6 {[%emt 0:00:00]} 32. Rd1 {[%emt 0:00:08]} Rxb6 {[%emt 0:00:12]} 33. Qe3 {[%emt 0:00:03]} Nf8 {[%emt 0:00:20]} 34. Qxe4 {[%emt 0:00:10]} Re6 {[%emt 0:00:05]} 35. Qc4 {[%emt 0:00:07]} Rc6 {[%emt 0:00:14]} 36. Qa2 {[%emt 0:00:05]} Ng6 {[%emt 0:00:15]} 37. Bf3 {[%emt 0:00:02]} Rc8 {[%emt 0:00:08]} 38. Qd5 {[%emt 0:00:07]} Nh4 {[%emt 0:00:05]} 39. Bg4 {[%emt 0:00:11]} Rf8 {[%emt 0:00:02]} 40. Rd2 {[%emt 0:00:02]} h6 {[%emt 0:00:14]} 41. Qc5 {[%emt 0:00:14]} Re8 {[%emt 0:00:14]} 42. Rd6 {[%emt 0:00:18]} Qa1+ {[%emt 0:00:18]} 43. Kh2 {[%emt 0:00:06]} Qg7 {[%emt 0:00:10]} 44. Qc6 {[%emt 0:00:12]} Rf8 {[%emt 0:00:11]} 45. Rxh6+ {[%emt 0:00:06]} Kg8 {[%emt 0:00:01]} 46. Be6+ {[%emt 0:00:01]} Rf7 {[%emt 0:00:01]} 47. Qe8+ {[%emt 0:00:05]} Qf8 {[%emt 0:00:03]} 48. Bxf7+ 1-0

[Event "Kupreichik Memorial Open 2018"]
[Site "Minsk"]
[Date "2018.06.21"]
[Round "4"]
[White "Badelka, Olga"]
[Black "Zhukova, Natalia"]
[Result "0-1"]
[ECO "D35"]
[WhiteElo "2153"]
[BlackElo "2356"]
[Annotator "NA"]
[PlyCount "76"]
[EventDate "2018.06.21"]
[EventCountry "BLR"]
[SourceTitle "playchess.com"]
[Source "ChessBase"]
[SourceQuality "1"]
[TimeControl "900+10"]

1. d4 {[%emt 0:00:00]} Nf6 {[%emt 0:00:02]} 2. c4 {[%emt 0:00:00]} e6 {[%emt 0:00:02]} 3. Nc3 {[%emt 0:00:00]} d5 {[%emt 0:00:03]} 4. cxd5 {[%emt 0:00:00]} Nxd5 {[%emt 0:00:01]} 5. e4 {[%emt 0:00:00]} Nxc3 {[%emt 0:00:02]} 6. bxc3 {[%emt 0:00:01]} c5 {[%emt 0:00:02]} 7. Nf3 {[%emt 0:00:18]} cxd4 {[%emt 0:00:03]} 8. cxd4 {[%emt 0:00:01]} Bb4+ {[%emt 0:00:01]} 9. Bd2 {[%emt 0:00:02]} Bxd2+ {[%emt 0:00:08]} 10. Qxd2 {[%emt 0:00:01]} O-O {[%emt 0:00:04]} 11. Bc4 {[%emt 0:00:21]} Nd7 {[%emt 0:00:11]} 12. O-O {[%emt 0:00:07]} b6 {[%emt 0:00:01]} 13. Rfe1 {[%emt 0:00:29]} Bb7 {[%emt 0:00:01]} 14. Rad1 {[%emt 0:00:50]} Rc8 {[%emt 0:01:02]} 15. Bd3 {[%emt 0:00:04]} h6 {[%emt 0:00:15]} 16. Bb1 {[%emt 0:02:03]} Qc7 {[%emt 0:00:24]} 17. Re3 {[%emt 0:01:11]} Rfd8 {[%emt 0:01:05]} 18. Ne1 {[%emt 0:01:56]} Ne5 {[%emt 0:01:53]} 19. Rg3 {[%emt 0:00:55]} Nc4 {[%emt 0:02:56]} 20. Qe2 {[%emt 0:00:01]} Qe7 {[%emt 0:05:00]} 21. e5 {[%emt 0:01:35]} Na3 {[%emt 0:00:03]} 22. Bd3 {[%emt 0:00:55]} Kh8 {[%emt 0:00:31]} 23. Qg4 {[%emt 0:01:19]} Qf8 {[%emt 0:00:05]} 24. Be4 {[%emt 0:03:07]} Bxe4 {[%emt 0:00:21]} 25. Qxe4 {[%emt 0:00:02]} Nb5 {[%emt 0:00:11]} 26. Qe3 {[%emt 0:03:25]} Nc3 {[%emt 0:00:40]} 27. Rd2 {[%emt 0:00:04]} Qb4 {[%emt 0:00:46]} 28. h3 {[%emt 0:00:32]} Ne4 {[%emt 0:00:16]} 29. Qxe4 {[%emt 0:00:14]} Qxd2 {[%emt 0:00:01]} 30. Nf3 {[%emt 0:00:07]} Rc1+ {[%emt 0:00:08]} 31. Kh2 {[%emt 0:00:02]} Qxf2 {[%emt 0:00:16]} 32. Qg4 {[%emt 0:00:20]} Rg8 {[%emt 0:00:08]} 33. Qh5 {[%emt 0:00:03]} Qf1 {[%emt 0:00:15]} 34. Rg4 {[%emt 0:00:17]} Qh1+ {[%emt 0:00:13]} 35. Kg3 {[%emt 0:00:01]} Rc2 {[%emt 0:00:07]} 36. Qxf7 {[%emt 0:00:23]} Rxg2+ {[%emt 0:00:14]} 37. Kf4 {[%emt 0:00:13]} Qc1+ {[%emt 0:00:34]} 38. Ke4 {[%emt 0:00:01]} Re2+ {[%emt 0:00:04]} 0-1

[Event "Kupreichik Memorial Open 2018"]
[Site "Minsk"]
[Date "2018.06.21"]
[Round "4"]
[White "Maslak, Alexander"]
[Black "Tsvetkova, Vladislava"]
[Result "1/2-1/2"]
[ECO "B16"]
[WhiteElo "2127"]
[BlackElo "1697"]
[Annotator "NA"]
[PlyCount "88"]
[EventDate "2018.06.21"]
[EventCountry "BLR"]
[SourceTitle "playchess.com"]
[Source "ChessBase"]
[SourceQuality "1"]
[TimeControl "900+10"]

1. e4 {[%emt 0:00:00]} c6 {[%emt 0:00:02]} 2. d4 {[%emt 0:00:00]} d5 {[%emt 0:00:02]} 3. Nc3 {[%emt 0:00:00]} dxe4 {[%emt 0:00:02]} 4. Nxe4 {[%emt 0:00:00]} Nf6 {[%emt 0:00:02]} 5. Nxf6+ {[%emt 0:00:00]} gxf6 {[%emt 0:00:03]} 6. Be3 {[%emt 0:00:13]} Bf5 {[%emt 0:00:07]} 7. Ne2 {[%emt 0:00:06]} Nd7 {[%emt 0:00:06]} 8. Ng3 {[%emt 0:00:02]} Bg6 {[%emt 0:00:03]} 9. h4 {[%emt 0:01:13]} h5 {[%emt 0:00:03]} 10. f4 {[%emt 0:00:21]} e6 {[%emt 0:00:20]} 11. Qd2 {[%emt 0:01:40]} Qc7 {[%emt 0:00:28]} 12. O-O-O {[%emt 0:00:10]} O-O-O {[%emt 0:00:06]} 13. Qf2 {[%emt 0:00:07]} Nb6 {[%emt 0:00:38]} 14. c4 {[%emt 0:02:13]} Bb4 {[%emt 0:01:27]} 15. a3 {[%emt 0:00:58]} Nd5 {[%emt 0:03:36]} 16. axb4 {[%emt 0:01:39]} Nxb4 {[%emt 0:00:04]} 17. f5 {[%emt 0:02:04]} exf5 {[%emt 0:00:15]} 18. Bd3 {[%emt 0:01:20]} Nxd3+ {[%emt 0:04:57]} 19. Rxd3 {[%emt 0:00:02]} Qa5 {[%emt 0:00:23]} 20. Ra3 {[%emt 0:01:11]} Qb4 {[%emt 0:00:05]} 21. Qf4 {[%emt 0:01:11]} Rhe8 {[%emt 0:01:09]} 22. Rd1 {[%emt 0:01:35]} Qxc4+ {[%emt 0:00:58]} 23. Kb1 {[%emt 0:00:43]} Rd5 {[%emt 0:01:39]} 24. Rc1 {[%emt 0:00:45]} Qb4 {[%emt 0:00:56]} 25. Ka1 {[%emt 0:00:27]} Rb5 {[%emt 0:00:53]} 26. Rb1 {[%emt 0:00:27]} Ra5 {[%emt 0:00:05]} 27. Bc1 {[%emt 0:00:14]} Re1 {[%emt 0:00:52]} 28. Qd2 {[%emt 0:00:29]} Qxd2 {[%emt 0:00:08]} 29. Bxd2 {[%emt 0:00:02]} Rxa3+ {[%emt 0:00:07]} 30. bxa3 {[%emt 0:00:01]} Rxb1+ {[%emt 0:00:02]} 31. Kxb1 {[%emt 0:00:01]} f4+ {[%emt 0:00:02]} 32. Kb2 {[%emt 0:00:01]} fxg3 {[%emt 0:00:01]} 33. Bf4 {[%emt 0:00:02]} Kd7 {[%emt 0:00:03]} 34. Bxg3 {[%emt 0:00:01]} Ke6 {[%emt 0:00:02]} 35. Bb8 {[%emt 0:00:02]} a6 {[%emt 0:00:02]} 36. Kc3 {[%emt 0:00:01]} Kd5 {[%emt 0:00:01]} 37. g3 {[%emt 0:00:01]} b5 {[%emt 0:00:10]} 38. Bc7 {[%emt 0:00:03]} Be4 {[%emt 0:00:06]} 39. Bd8 {[%emt 0:00:02]} f5 {[%emt 0:00:03]} 40. Be7 {[%emt 0:00:02]} Bb1 {[%emt 0:00:46]} 41. Bd8 {[%emt 0:00:02]} Ke4 {[%emt 0:00:05]} 42. Bc7 {[%emt 0:00:02]} Ke3 {[%emt 0:00:40]} 43. Bf4+ {[%emt 0:00:02]} Ke4 {[%emt 0:00:05]} 44. Bc7 {[%emt 0:00:02]} Kd5 {[%emt 0:00:08]} 1/2-1/2

[Event "Kupreichik Memorial Open 2018"]
[Site "Minsk"]
[Date "2018.06.21"]
[Round "4"]
[White "Shaban, Alena"]
[Black "Papunidi, Matvey"]
[Result "0-1"]
[ECO "A04"]
[WhiteElo "2027"]
[BlackElo "1751"]
[Annotator "NA"]
[PlyCount "52"]
[EventDate "2018.06.21"]
[EventCountry "BLR"]
[SourceTitle "playchess.com"]
[Source "ChessBase"]
[SourceQuality "1"]
[TimeControl "900+10"]

1. Nf3 {[%emt 0:00:00]} c5 {[%emt 0:00:02]} 2. g3 {[%emt 0:00:00]} g6 {[%emt 0:00:01]} 3. Bg2 {[%emt 0:00:00]} Bg7 {[%emt 0:00:01]} 4. d3 {[%emt 0:00:00]} Nc6 {[%emt 0:00:02]} 5. O-O {[%emt 0:00:00]} e6 {[%emt 0:00:18]} 6. e4 {[%emt 0:00:06]} Nge7 {[%emt 0:00:07]} 7. Re1 {[%emt 0:00:23]} O-O {[%emt 0:00:11]} 8. Nbd2 {[%emt 0:00:08]} d6 {[%emt 0:00:07]} 9. c3 {[%emt 0:00:28]} Rb8 {[%emt 0:00:03]} 10. Nf1 {[%emt 0:00:10]} b5 {[%emt 0:00:04]} 11. d4 {[%emt 0:00:20]} Bb7 {[%emt 0:01:22]} 12. dxc5 {[%emt 0:01:25]} dxc5 {[%emt 0:00:01]} 13. Bf4 {[%emt 0:00:08]} Rc8 {[%emt 0:00:24]} 14. Bd6 {[%emt 0:00:14]} Na5 {[%emt 0:00:42]} 15. e5 {[%emt 0:04:40]} Nc4 {[%emt 0:00:10]} 16. Qe2 {[%emt 0:00:12]} Nxd6 {[%emt 0:02:35]} 17. Rad1 {[%emt 0:00:38]} Nd5 {[%emt 0:01:12]} 18. exd6 {[%emt 0:00:04]} a6 {[%emt 0:00:19]} 19. c4 {[%emt 0:01:52]} bxc4 {[%emt 0:00:06]} 20. Qxc4 {[%emt 0:00:02]} Qxd6 {[%emt 0:00:26]} 21. Ne3 {[%emt 0:00:37]} Nxe3 {[%emt 0:00:13]} 22. fxe3 {[%emt 0:00:06]} Qb6 {[%emt 0:00:45]} 23. b3 {[%emt 0:00:13]} Rfd8 {[%emt 0:00:54]} 24. Qh4 {[%emt 0:00:07]} Rxd1 {[%emt 0:01:02]} 25. Rxd1 {[%emt 0:00:03]} c4 {[%emt 0:00:01]} 26. bxc4 {[%emt 0:00:08]} Qxe3+ {[%emt 0:00:03]} 0-1